bitfinex/quotes_BTCUSD_20230110
["timestamp","ask_amount","ask_price","bid_price","bid_amount"]
[1673368762541,3.5177241,17303.0,17302.0,0.02159332]
[1673368762777,3.08695108,17303.0,17302.0,0.02159332]
[1673368763048,2.95095108,17303.0,17302.0,0.02159332]
[1673368763301,2.65017454,17303.0,17302.0,0.02159332]
[1673368764041,3.01128254,17303.0,17302.0,0.02159332]
[1673368764548,3.08695108,17303.0,17302.0,0.02159332]
[1673368764872,3.44805908,17303.0,17302.0,0.02159332]
[1673368765046,3.08695108,17303.0,17302.0,0.02159332]
[1673368765308,2.65017454,17303.0,17302.0,0.02159332]
[1673368765559,2.82241161,17303.0,17302.0,0.02159332]
[1673368765808,2.65086282,17303.0,17302.0,0.02096554]
[1673368766059,2.51486282,17303.0,17302.0,0.02096554]
[1673368766315,2.17998008,17303.0,17302.0,0.02096554]
[1673368766552,2.47998008,17303.0,17302.0,0.02033776]
[1673368767552,2.65186282,17303.0,17302.0,0.02033776]
[1673368767824,2.35186282,17303.0,17302.0,0.01923702]
[1673368768080,2.17999807,17303.0,17302.0,0.01923702]
[1673368768322,2.82469774,17303.0,17302.0,0.01923702]
[1673368768586,2.82569774,17303.0,17302.0,0.01923702]
[1673368768830,2.48099807,17303.0,17302.0,0.01813628]
[1673368769068,2.82569774,17303.0,17302.0,0.01813628]
[1673368769329,2.65286282,17303.0,17302.0,0.01813628]
[1673368769574,3.01397082,17303.0,17302.0,0.01813628]
[1673368769815,3.01397082,17303.0,17302.0,0.01703554]
[1673368770310,2.65286282,17303.0,17302.0,0.01703554]
[1673368770564,3.44974736,17303.0,17302.0,0.0159348]
[1673368770815,3.66475084,17303.0,17302.0,0.0159348]
[1673368771312,2.45157359,17303.0,17302.0,0.0159348]
[1673368771566,2.88835013,17303.0,17302.0,0.0159348]
[1673368771810,2.89685013,17303.0,17302.0,0.01483406]
[1673368772313,3.67452202,17303.0,17302.0,0.01483406]
[1673368772569,3.23774942,17303.0,17302.0,0.01483406]
[1673368772833,3.23774942,17303.0,17302.0,0.01373332]
[1673368772834,3.10074942,17303.0,17302.0,0.01373332]
[1673368773090,3.23774942,17303.0,17302.0,0.01373332]
[1673368773597,3.23774942,17303.0,17302.0,0.01263258]
[1673368773853,3.19522275,17303.0,17302.0,0.01263258]
[1673368774082,3.02236761,17303.0,17302.0,0.01263258]
[1673368774330,3.45914415,17303.0,17302.0,0.01263258]
[1673368774602,3.45914415,17303.0,17302.0,0.01154089]
[1673368774603,3.02236761,17303.0,17302.0,0.01154089]
[1673368774850,0.137,17303.0,17302.0,0.81999725]
[1673368775095,0.137,17303.0,17302.0,0.58231936]
[1673368776092,0.137,17303.0,17302.0,0.57546936]
[1673368776600,0.138,17303.0,17302.0,0.57546936]
[1673368776850,0.138,17303.0,17302.0,0.65425236]
[1673368777352,0.138,17303.0,17302.0,1.81018636]
[1673368777620,0.138,17303.0,17302.0,1.98193141]
[1673368778605,6e-05,17304.0,17302.0,1.98193141]
[1673368778606,6e-05,17304.0,17303.0,0.2]
[1673368778854,0.00106,17304.0,17303.0,2.03954805]
[1673368779108,0.00106,17304.0,17303.0,2.11832205]
[1673368779858,0.00106,17304.0,17303.0,2.03954805]
[1673368780118,0.00106,17304.0,17303.0,2.11832205]
[1673368780370,0.00106,17304.0,17303.0,2.03954805]
[1673368780634,0.00106,17304.0,17303.0,2.11832205]
[1673368780887,0.04606,17304.0,17303.0,2.13032205]
[1673368781407,0.04606,17304.0,17303.0,1.367868]
[1673368781408,0.49884189,17304.0,17303.0,1.367868]
[1673368781645,0.49884189,17304.0,17303.0,0.789934]
[1673368782387,0.49884189,17304.0,17303.0,0.589934]
[1673368782633,0.49884189,17304.0,17303.0,0.58825675]
[1673368783873,0.49884189,17304.0,17303.0,0.78825675]
[1673368784131,0.49884189,17304.0,17303.0,0.58825675]
[1673368784629,0.04606,17304.0,17303.0,0.58825675]
[1673368784879,0.04606,17304.0,17303.0,0.78825675]
[1673368785127,0.04606,17304.0,17303.0,0.66703075]
[1673368785388,0.04606,17304.0,17303.0,0.58825675]
[1673368785654,0.04606,17304.0,17303.0,0.5865795]
[1673368786161,0.53844902,17304.0,17303.0,0.5865795]
[1673368786663,0.53844902,17304.0,17303.0,0.58494916]
[1673368787710,0.53844902,17304.0,17303.0,0.58331882]
[1673368787952,0.73844902,17304.0,17303.0,0.58331882]
[1673368788454,0.73844902,17304.0,17303.0,0.012]
[1673368788455,1.21118259,17304.0,17303.0,0.012]
[1673368788703,0.91118259,17304.0,17303.0,0.012]
[1673368788977,1.21118259,17304.0,17303.0,0.01036966]
[1673368789737,1.21118259,17304.0,17303.0,0.00873932]
[1673368790256,0.91118259,17304.0,17303.0,0.00873932]
[1673368790490,0.73838902,17304.0,17303.0,0.00873932]
[1673368790741,0.73838902,17304.0,17303.0,0.00710898]
[1673368791740,0.73838902,17304.0,17303.0,0.00547864]
[1673368792225,0.53838902,17304.0,17303.0,0.00547864]
[1673368792743,0.73838902,17304.0,17303.0,0.00380139]
[1673368793263,0.53838902,17304.0,17303.0,0.00380139]
[1673368793764,0.91118259,17304.0,17303.0,0.00212414]
[1673368794047,1.21118259,17304.0,17303.0,0.00212414]
[1673368794530,1.90632808,17304.0,17303.0,0.00212414]
[1673368794809,3.0710878,17304.0,17303.0,0.00044689]
[1673368795102,3.4321958,17304.0,17303.0,0.00044689]
[1673368795367,2.92433868,17304.0,17303.0,0.00044689]
[1673368795627,0.2,17303.0,17302.0,0.01154089]
[1673368795923,2.96915869,17303.0,17302.0,0.01154089]
[1673368796174,3.33026669,17303.0,17302.0,0.01154089]
[1673368796451,3.15065629,17303.0,17302.0,0.01154089]
[1673368796708,3.94374748,17303.0,17302.0,0.00986364]
[1673368796956,3.42635132,17303.0,17302.0,0.00986364]
[1673368797213,3.29135151,17303.0,17302.0,0.00986364]
[1673368797465,3.28664597,17303.0,17302.0,0.00986364]
[1673368797776,3.28664597,17303.0,17302.0,0.00818639]
[1673368798052,1.95739727,17303.0,17302.0,0.00818639]
[1673368798794,1.95739727,17303.0,17302.0,0.00650914]
[1673368799060,2.31850527,17303.0,17302.0,0.00650914]
[1673368799323,1.95739727,17303.0,17302.0,0.00650914]
[1673368799569,0.96247943,17303.0,17302.0,0.00483189]
[1673368799813,3.11373773,17303.0,17302.0,0.00483189]
[1673368800328,3.47484573,17303.0,17302.0,0.00483189]
[1673368800556,3.47490573,17303.0,17302.0,0.00483189]
[1673368800798,3.47490573,17303.0,17302.0,0.00315464]
[1673368801054,1.95745727,17303.0,17302.0,0.00315464]
[1673368801295,3.11379825,17303.0,17302.0,0.00315464]
[1673368801540,3.82054615,17303.0,17302.0,0.00315464]
[1673368801789,0.65328989,17302.0,17301.0,0.00446171]
[1673368802058,1.48702239,17302.0,17301.0,0.00446171]
[1673368802314,0.65328989,17302.0,17301.0,0.00446171]
[1673368802568,2.65328989,17302.0,17301.0,0.00446171]
[1673368803298,2.78928989,17302.0,17301.0,0.00446171]
[1673368804054,2.58928989,17302.0,17301.0,0.01131171]
[1673368804311,2.58928989,17302.0,17301.0,0.00446171]
[1673368805085,0.58928989,17302.0,17301.0,0.00446171]
[1673368805829,0.58928989,17302.0,17301.0,0.58078546]
[1673368806621,0.13606,17302.0,17301.0,0.58078546]
[1673368806861,0.13606,17302.0,17301.0,2.0577378]
[1673368807100,0.13606,17302.0,17301.0,2.30827385]
[1673368808116,0.13606,17302.0,17301.0,2.3065966]
[1673368808607,1e-08,17302.0,17301.0,2.3065966]
[1673368809105,1e-08,17302.0,17301.0,2.30491935]
[1673368809875,1e-08,17302.0,17301.0,2.3032421]
[1673368810134,1e-08,17302.0,17301.0,1.60261351]
[1673368810884,1e-08,17302.0,17301.0,1.60093626]
[1673368811652,0.6359647,17305.0,17301.0,2.67561296]
[1673368811903,0.5133418,17304.0,17302.0,0.078781]
[1673368812140,0.5133418,17304.0,17303.0,0.577934]
[1673368812965,0.059,17304.0,17303.0,1.15419075]
[1673368813203,0.48999023,17305.0,17303.0,1.23296475]
[1673368813432,0.48999023,17305.0,17303.0,1.15419075]
[1673368813678,0.48999023,17305.0,17304.0,0.27709075]
[1673368813931,0.48999023,17305.0,17304.0,1.43289275]
[1673368814211,0.059,17305.0,17304.0,1.43289275]
[1673368814452,2.43157764,17307.0,17304.0,1.43289275]
[1673368814707,2.43157764,17307.0,17304.0,1.59347989]
[1673368814962,0.68865267,17306.0,17304.0,1.355802]
[1673368815524,0.059,17305.0,17304.0,1.166802]
[1673368815721,1.29642409,17306.0,17304.0,1.15412475]
[1673368815976,0.54326308,17305.0,17304.0,1.16512475]
[1673368816725,0.54326308,17305.0,17304.0,1.1524475]
[1673368816970,0.60226308,17305.0,17304.0,1.2388505]
[1673368817476,0.60226308,17305.0,17304.0,1.1634475]
[1673368817725,0.6680269,17305.0,17304.0,1.16177025]
[1673368817991,0.6680269,17305.0,17304.0,0.58386925]
[1673368819732,0.8406514,17305.0,17304.0,0.58386925]
[1673368820799,0.6680269,17305.0,17304.0,0.58386925]
[1673368821834,0.8406514,17305.0,17304.0,0.58386925]
[1673368822292,0.6680269,17305.0,17304.0,0.58386925]
[1673368823566,0.12476382,17305.0,17304.0,0.78386925]
[1673368823831,0.12476382,17305.0,17304.0,1.99767867]
[1673368824839,0.12476382,17305.0,17304.0,1.79767867]
[1673368825623,0.12476382,17305.0,17304.0,1.72227267]
[1673368826574,0.51974701,17305.0,17304.0,1.72227267]
[1673368826832,0.51974701,17305.0,17304.0,1.14437167]
[1673368827588,0.51974701,17305.0,17304.0,1.72227267]
[1673368827826,0.51974701,17305.0,17304.0,1.79767867]
[1673368828075,0.51974701,17305.0,17304.0,1.72227267]
[1673368828582,0.12476382,17305.0,17304.0,1.72227267]
[1673368829826,0.12476382,17305.0,17304.0,1.79767867]
[1673368830105,0.12476382,17305.0,17304.0,1.72227267]
[1673368830862,0.63130514,17305.0,17304.0,1.72227267]
[1673368831888,0.63130514,17305.0,17304.0,0.58386925]
[1673368836124,0.63130514,17305.0,17304.0,1.16177025]
[1673368836637,0.63130514,17305.0,17304.0,0.58386925]
[1673368841355,0.63130514,17305.0,17304.0,0.78386925]
[1673368841571,0.63130514,17305.0,17304.0,0.58386925]
[1673368843270,0.80392964,17305.0,17304.0,0.58386925]
[1673368845038,0.63130514,17305.0,17304.0,0.58386925]
[1673368845293,0.63130514,17305.0,17304.0,1.16177025]
[1673368845294,0.12476382,17305.0,17304.0,1.16177025]
[1673368846094,0.12476382,17305.0,17304.0,1.23717625]
[1673368846346,0.12476382,17305.0,17304.0,2.06935734]
[1673368846619,2.0,17307.0,17305.0,8.908e-05]
[1673368846868,2.0,17307.0,17306.0,0.577834]
[1673368847173,0.50463278,17307.0,17306.0,1.231059]
[1673368847896,0.50963278,17307.0,17306.0,1.242059]
[1673368848145,0.005,17307.0,17306.0,1.166668]
[1673368848399,0.005,17307.0,17306.0,1.242057]
[1673368848652,0.84753866,17308.0,17306.0,1.155668]
[1673368848933,0.005,17307.0,17306.0,1.166668]
[1673368850247,0.005,17307.0,17306.0,1.85419739]
[1673368851275,0.005,17307.0,17306.0,2.02739029]
[1673368851514,0.41596102,17308.0,17306.0,2.01639029]
[1673368851781,0.41596102,17308.0,17307.0,0.2]
[1673368852035,0.00211054,17308.0,17307.0,0.43767789]
[1673368852299,0.00211054,17308.0,17307.0,1.3556]
[1673368852538,0.00211054,17308.0,17307.0,1.430981]
[1673368853829,0.00711054,17308.0,17307.0,1.430981]
[1673368854105,0.00211054,17308.0,17307.0,1.430981]
[1673368854382,0.00711054,17308.0,17307.0,1.98395106]
[1673368861010,0.00711054,17308.0,17307.0,1.78395106]
[1673368861504,0.00711054,17308.0,17307.0,1.70857006]
[1673368861800,0.00711054,17308.0,17307.0,1.78395106]
[1673368862846,0.00211054,17308.0,17307.0,1.77295106]
[1673368863098,0.00711054,17308.0,17307.0,1.77295106]
[1673368863351,0.00211054,17308.0,17307.0,1.77295106]
[1673368863595,0.00711054,17308.0,17307.0,1.77695106]
[1673368864592,0.00711054,17308.0,17307.0,1.70157006]
[1673368866150,0.00711054,17308.0,17307.0,0.004]
[1673368866506,0.21681054,17308.0,17307.0,0.004]
[1673368866655,0.48944309,17308.0,17307.0,0.004]
[1673368870138,0.78944309,17308.0,17307.0,0.004]
[1673368870383,2.48944309,17308.0,17307.0,0.004]
[1673368870879,2.48444309,17308.0,17305.0,1.17062915]
[1673368871139,3.04248973,17308.0,17307.0,0.009]
[1673368871413,3.04248973,17308.0,17305.0,1.17062915]
[1673368871414,2.48444309,17308.0,17306.0,0.2]
[1673368871674,2.57144309,17308.0,17307.0,0.009]
[1673368871926,2.48444309,17308.0,17305.0,1.17062915]
[1673368872177,2.95548973,17308.0,17306.0,0.2]
[1673368872436,2.48444309,17308.0,17306.0,0.2]
[1673368872935,2.57144309,17308.0,17306.0,0.2]
[1673368873193,2.57144309,17308.0,17305.0,1.74847015]
[1673368873194,2.48444309,17308.0,17305.0,1.74847015]
[1673368873444,2.57144309,17308.0,17306.0,0.009]
[1673368873693,0.57144309,17308.0,17306.0,0.786831]
[1673368873951,0.57144309,17308.0,17307.0,0.075381]
[1673368874200,9.153e-05,17307.0,17306.0,0.777831]
[1673368874704,9.153e-05,17307.0,17306.0,0.853217]
[1673368874951,9.153e-05,17307.0,17306.0,0.862217]
[1673368875449,9.153e-05,17307.0,17306.0,0.284386]
[1673368875711,9.153e-05,17307.0,17306.0,0.2]
[1673368875964,0.08709153,17307.0,17306.0,0.209]
[1673368876441,0.60614367,17307.0,17306.0,0.209]
[1673368877211,0.60614367,17307.0,17306.0,0.009]
[1673368878974,0.60614367,17307.0,17306.0,0.209]
[1673368879231,0.60614367,17307.0,17306.0,0.009]
[1673368886252,1.03772131,17307.0,17306.0,0.009]
[1673368886828,1.33772131,17307.0,17306.0,0.009]
[1673368887074,1.03772131,17307.0,17306.0,0.009]
[1673368887320,1.33772131,17307.0,17306.0,0.009]
[1673368887845,1.03772131,17307.0,17306.0,0.009]
[1673368888096,0.77876817,17307.0,17306.0,0.009]
[1673368889091,0.60614367,17307.0,17306.0,0.009]
[1673368890105,0.77876817,17307.0,17306.0,0.009]
[1673368892895,0.60614367,17307.0,17306.0,0.009]
[1673368893643,0.77876817,17307.0,17306.0,0.009]
[1673368894147,1.07876817,17307.0,17306.0,0.009]
[1673368895418,0.77876817,17307.0,17306.0,0.009]
[1673368898552,1.03772131,17307.0,17306.0,0.009]
[1673368898810,0.77876817,17307.0,17306.0,0.009]
[1673368900647,1.03772131,17307.0,17306.0,0.009]
[1673368900913,1.39886731,17307.0,17306.0,0.009]
[1673368901653,2.55490315,17307.0,17306.0,0.009]
[1673368901905,2.19377285,17307.0,17306.0,0.009]
[1673368902690,3.09884609,17307.0,17306.0,0.009]
[1673368902945,3.45999209,17307.0,17306.0,0.009]
[1673368903199,2.64416564,17307.0,17306.0,0.009]
[1673368903452,3.00531164,17307.0,17306.0,0.00891108]
[1673368903708,2.57327571,17307.0,17306.0,0.00891108]
[1673368903981,3.00485348,17307.0,17306.0,0.00891108]
[1673368904239,2.57327571,17307.0,17306.0,0.00891108]
[1673368904795,3.71256836,17307.0,17306.0,0.00891108]
[1673368905308,3.91042338,17307.0,17306.0,0.00891108]
[1673368905567,4.48822338,17307.0,17306.0,0.00891108]
[1673368905844,3.91042338,17307.0,17306.0,0.00891108]
[1673368906089,4.31492748,17307.0,17306.0,0.00891108]
[1673368906347,3.82342338,17307.0,17302.0,1.20256051]
[1673368906637,0.1671,17304.0,17302.0,1.20271051]
[1673368906879,2.63814664,17304.0,17302.0,1.20271051]
[1673368907148,2.2060888,17304.0,17302.0,1.20271051]
[1673368907394,2.1671,17304.0,17302.0,1.20271051]
[1673368907659,2.0,17304.0,17303.0,0.2]
[1673368907917,2.0,17304.0,17302.0,0.578089]
[1673368908184,2.022,17304.0,17302.0,0.578089]
[1673368908724,2.022,17304.0,17302.0,0.777939]
[1673368909237,0.022,17304.0,17302.0,0.777939]
[1673368909485,0.022,17304.0,17302.0,0.9511319]
[1673368909759,0.022,17304.0,17303.0,0.76452249]
[1673368910006,1e-08,17304.0,17303.0,2.33579939]
[1673368910256,1e-08,17304.0,17303.0,1.7712769]
[1673368910981,0.52185589,17306.0,17303.0,1.7712769]
[1673368911234,0.13,17304.0,17303.0,1.76973879]
[1673368911477,0.13,17304.0,17303.0,1.7742719]
[1673368911976,0.72185589,17306.0,17303.0,1.7712719]
[1673368912225,0.52185589,17306.0,17304.0,0.1671]
[1673368912477,0.52185589,17306.0,17305.0,0.075401]
[1673368912722,0.52185589,17306.0,17304.0,1.322867]
[1673368912976,0.65185589,17306.0,17304.0,1.84758492]
[1673368913223,0.52185589,17306.0,17305.0,0.075398]
[1673368913475,0.85785589,17306.0,17304.0,1.27269392]
[1673368913723,1.03045013,17306.0,17304.0,1.68347292]
[1673368914523,0.89445013,17306.0,17304.0,1.10259692]
[1673368914768,1.03045013,17306.0,17305.0,0.003]
[1673368915300,1.92960797,17306.0,17305.0,0.003]
[1673368915576,3.88687654,17306.0,17305.0,0.003]
[1673368915823,3.88687654,17306.0,17304.0,0.003]
[1673368916086,0.83374859,17305.0,17302.0,1.1417894]
[1673368916357,1.14364923,17305.0,17302.0,1.1417894]
[1673368916603,0.2,17304.0,17302.0,1.1417894]
[1673368917088,1.36355179,17305.0,17302.0,1.1417894]
[1673368917408,1.42055179,17305.0,17302.0,1.1457894]
[1673368917585,0.2,17304.0,17302.0,1.1417894]
[1673368918092,0.66534194,17304.0,17302.0,1.1417894]
[1673368918351,0.46534194,17304.0,17302.0,1.1417894]
[1673368918601,0.52234194,17304.0,17302.0,1.1457894]
[1673368919349,0.057,17304.0,17303.0,0.6711296]
[1673368919601,0.057,17304.0,17303.0,2.26467549]
[1673368919853,0.057,17304.0,17303.0,2.2001905]
[1673368920380,0.49066996,17305.0,17303.0,2.0269976]
[1673368920635,0.13,17304.0,17303.0,1.9545836]
[1673368920886,0.13,17304.0,17303.0,1.7545836]
[1673368921373,0.13,17304.0,17303.0,1.8299956]
[1673368922857,0.13,17304.0,17303.0,1.8249956]
[1673368923109,0.13,17304.0,17303.0,1.7495836]
[1673368923608,0.13,17304.0,17303.0,1.9981905]
[1673368925671,0.13,17304.0,17303.0,1.8249976]
[1673368925928,0.13,17304.0,17303.0,1.7495836]
[1673368926179,0.13,17304.0,17303.0,3.04455768]
[1673368926676,0.13,17304.0,17303.0,2.25797984]
[1673368926940,0.13,17304.0,17303.0,3.0445689]
[1673368928976,0.13,17304.0,17303.0,1.9981905]
[1673368929968,0.13,17304.0,17303.0,3.04557882]
[1673368930223,0.13,17304.0,17303.0,3.2164624]
[1673368930473,0.12988525,17304.0,17303.0,3.2164624]
[1673368931232,0.12988525,17304.0,17303.0,3.0454933]
[1673368931719,0.12988525,17304.0,17303.0,3.04259929]
[1673368931972,0.12988525,17304.0,17303.0,3.38667577]
[1673368932216,0.12988525,17304.0,17303.0,4.08667577]
[1673368932711,0.12988525,17304.0,17303.0,3.91356839]
[1673368933458,0.12988525,17304.0,17303.0,4.08385913]
[1673368934223,0.12988525,17304.0,17303.0,3.91341234]
[1673368934464,0.12988525,17304.0,17303.0,2.69519978]
[1673368934971,0.12988525,17304.0,17303.0,2.52210359]
[1673368935223,0.12988525,17304.0,17303.0,1.99519978]
[1673368935720,0.12988525,17304.0,17303.0,2.25483307]
[1673368936493,0.12988525,17304.0,17303.0,3.04189271]
[1673368936734,0.12988525,17304.0,17303.0,2.24983307]
[1673368936986,0.12988525,17304.0,17303.0,1.99019978]
[1673368940814,0.51085369,17305.0,17304.0,0.7817102]
[1673368941062,0.43205784,17306.0,17304.0,1.9375122]
[1673368941063,0.2,17306.0,17304.0,1.9375122]
[1673368941311,0.70630909,17306.0,17305.0,0.075401]
[1673368941596,0.70630909,17306.0,17305.0,0.577867]
[1673368942096,0.87891168,17306.0,17305.0,0.577867]
[1673368942345,0.87891168,17306.0,17304.0,1.1686112]
[1673368942693,1.31011022,17306.0,17304.0,1.1686112]
[1673368943085,1.31011022,17306.0,17304.0,1.7375122]
[1673368943340,1.34611022,17306.0,17305.0,0.011]
[1673368943591,1.17891168,17306.0,17304.0,1.1596112]
[1673368943858,1.14611022,17306.0,17304.0,1.1686112]
[1673368944099,0.2,17305.0,17304.0,1.1596112]
[1673368944363,1.31181022,17306.0,17305.0,0.011]
[1673368944617,0.84461168,17306.0,17304.0,1.1596112]
[1673368944874,1.51181022,17306.0,17304.0,1.1686112]
[1673368945127,1.04461168,17306.0,17304.0,1.1596112]
[1673368945648,1.30350304,17306.0,17304.0,1.1596112]
[1673368945902,1.53470158,17306.0,17304.0,1.1596112]
[1673368946152,0.2,17305.0,17304.0,1.1596112]
[1673368946709,0.37260259,17305.0,17304.0,0.586901]
[1673368946936,0.37260259,17305.0,17304.0,0.577901]
[1673368947202,0.20860259,17305.0,17304.0,0.586901]
[1673368947756,0.66971134,17305.0,17304.0,0.009]
[1673368948342,0.86971134,17305.0,17304.0,0.009]
[1673368949107,0.66971134,17305.0,17304.0,0.009]
[1673368949360,1.4286027,17305.0,17304.0,0.009]
[1673368949607,3.71559121,17305.0,17304.0,0.009]
[1673368949858,5.71559121,17305.0,17304.0,0.009]
[1673368950395,5.88818546,17305.0,17304.0,0.009]
[1673368950587,5.96312894,17305.0,17304.0,0.009]
[1673368951073,5.97162894,17305.0,17304.0,0.009]
[1673368951553,5.89668546,17305.0,17304.0,0.009]
[1673368952047,5.97158253,17305.0,17304.0,0.009]
[1673368952518,5.89668546,17305.0,17304.0,0.009]
[1673368952761,6.07751599,17305.0,17304.0,0.009]
[1673368953020,6.00261911,17305.0,17304.0,0.009]
[1673368953263,6.26123241,17305.0,17304.0,0.009]
[1673368953518,6.0381878,17305.0,17304.0,0.009]
[1673368954745,5.96317822,17305.0,17304.0,0.009]
[1673368954989,6.03727751,17305.0,17304.0,0.009]
[1673368955234,5.61560965,17305.0,17304.0,0.009]
[1673368955526,6.01807543,17305.0,17304.0,0.009]
[1673368955755,5.61560965,17305.0,17304.0,0.009]
[1673368956008,5.27042117,17305.0,17304.0,0.009]
[1673368957292,5.77836116,17305.0,17304.0,0.009]
[1673368957551,5.86436884,17305.0,17304.0,0.009]
[1673368957810,6.69498845,17305.0,17304.0,0.009]
[1673368958061,9.92485226,17305.0,17304.0,0.00742727]
[1673368958317,10.46942306,17305.0,17304.0,0.00742727]
[1673368958575,10.46942306,17305.0,17304.0,2.727e-05]
[1673368958576,11.32108306,17305.0,17304.0,2.727e-05]
[1673368958832,0.2,17304.0,17301.0,0.02205707]
[1673368959099,1.10348471,17302.0,17301.0,0.02205707]
[1673368959374,3.18508733,17302.0,17301.0,0.02205707]
[1673368959610,3.71066623,17302.0,17301.0,0.02205707]
[1673368959876,2.38212511,17302.0,17301.0,0.02205707]
[1673368960403,2.51812511,17302.0,17301.0,0.02405707]
[1673368961439,2.25974595,17302.0,17301.0,0.02405707]
[1673368962008,2.51812511,17302.0,17301.0,0.02405707]
[1673368962192,2.25974595,17302.0,17301.0,0.02405707]
[1673368962704,2.51812511,17302.0,17301.0,0.02405707]
[1673368963466,2.25974595,17302.0,17301.0,0.02405707]
[1673368964231,2.08762344,17302.0,17301.0,0.02405707]
[1673368966829,2.25974595,17302.0,17301.0,0.02405707]
[1673368967596,2.08762344,17302.0,17301.0,0.02405707]
[1673368970387,1.57054454,17302.0,17301.0,0.02405707]
[1673368970908,1.97952035,17302.0,17301.0,0.02405707]
[1673368971159,1.74266705,17302.0,17301.0,0.02405707]
[1673368971444,2.02734579,17302.0,17301.0,0.02405707]
[1673368972729,2.02734579,17302.0,17301.0,0.02395556]
[1673368973757,2.02734579,17302.0,17301.0,0.02385405]
[1673368974854,2.02734579,17302.0,17301.0,0.02375254]
[1673368975811,2.02734579,17302.0,17301.0,0.02365103]
[1673368978073,1.57054454,17302.0,17301.0,0.02365103]
[1673368978328,1.57556705,17302.0,17301.0,0.02365103]
[1673368978578,2.11157502,17302.0,17301.0,0.02365103]
[1673368978833,2.11157502,17302.0,17301.0,0.02354952]
[1673368980101,1.94497502,17302.0,17301.0,0.02354952]
[1673368980629,1.77285251,17302.0,17301.0,0.02354952]
[1673368981915,1.94497502,17302.0,17301.0,0.02354952]
[1673368982936,1.94497502,17302.0,17301.0,0.02344801]
[1673368983455,2.20335418,17302.0,17301.0,0.02344801]
[1673368983742,1.94497502,17302.0,17301.0,0.02344801]
[1673368983984,1.04165397,17302.0,17301.0,0.0233465]
[1673368984241,0.68050797,17302.0,17301.0,0.0233465]
[1673368984498,0.68050797,17302.0,17301.0,0.0232535]
[1673368984755,0.88050797,17302.0,17301.0,0.02315199]
[1673368985518,1.24165397,17302.0,17301.0,0.02315199]
[1673368985769,1.24165397,17302.0,17301.0,0.02305048]
[1673368985770,1.71377648,17302.0,17301.0,0.02305048]
[1673368986022,1.78345342,17302.0,17301.0,0.02305048]
[1673368986279,2.14459942,17302.0,17301.0,0.02305048]
[1673368986810,2.14459942,17302.0,17301.0,0.02294897]
[1673368987079,2.40297858,17302.0,17301.0,0.02294897]
[1673368987855,1.05263048,17302.0,17301.0,0.02284746]
[1673368988129,1.41377648,17302.0,17301.0,0.02284746]
[1673368988638,1.71377648,17302.0,17301.0,0.02284746]
[1673368988963,2.14464303,17302.0,17301.0,0.02274595]
[1673368989393,1.71377648,17302.0,17301.0,0.02274595]
[1673368989690,1.05263048,17302.0,17301.0,0.02274595]
[1673368989967,1.05263048,17302.0,17301.0,0.02264444]
[1673368991015,1.05263048,17302.0,17301.0,0.02254293]
[1673368991774,1.05263048,17302.0,17301.0,0.02244142]
[1673368992768,1.05263048,17302.0,17301.0,0.02233991]
[1673368993828,1.05263048,17302.0,17301.0,0.0222384]
[1673368994866,1.05263048,17302.0,17301.0,0.02213689]
[1673368995120,1.31100964,17302.0,17301.0,0.02213689]
[1673368995387,3.55939222,17302.0,17301.0,0.02213689]
[1673368995663,3.73177526,17302.0,17301.0,0.02213689]
[1673368995904,3.37062926,17302.0,17301.0,0.02203538]
[1673368996157,3.73177526,17302.0,17301.0,0.02203538]
[1673368996406,4.1624072,17302.0,17301.0,0.02203538]
[1673368996735,3.90402804,17302.0,17301.0,0.02203538]
[1673368996940,3.90402804,17302.0,17301.0,0.02193387]
[1673368997708,3.97836508,17302.0,17301.0,0.02183236]
[1673368997990,3.44235711,17302.0,17301.0,0.02183236]
[1673368998238,4.11212561,17302.0,17301.0,0.02183236]
[1673368999030,4.69009261,17302.0,17301.0,0.02173085]
[1673369002879,4.77460345,17302.0,17301.0,0.02173085]
[1673369004561,5.35257045,17302.0,17301.0,0.02173085]
[1673369005763,5.35257045,17302.0,17301.0,0.02162934]
[1673369006805,5.35257045,17302.0,17301.0,0.02152783]
[1673369007826,5.35257045,17302.0,17301.0,0.02142632]
[1673369008305,4.77460345,17302.0,17301.0,0.02142632]
[1673369008805,4.77460345,17302.0,17301.0,0.02132481]
[1673369009062,4.25784513,17302.0,17301.0,0.02132481]
[1673369009761,4.25784513,17302.0,17301.0,0.0212233]
[1673369010779,4.75159007,17302.0,17301.0,0.02112179]
[1673369011309,4.60485947,17302.0,17301.0,0.02112179]
[1673369011562,4.60485532,17302.0,17301.0,0.02112179]
[1673369011811,4.17362307,17302.0,17301.0,0.02102028]
[1673369012117,3.67987813,17302.0,17301.0,0.02102028]
[1673369012321,4.25784513,17302.0,17301.0,0.02102028]
[1673369012574,4.76581153,17302.0,17301.0,0.02102028]
[1673369013387,4.25784513,17302.0,17301.0,0.02102028]
[1673369013838,4.25784513,17302.0,17301.0,0.02091877]
[1673369014094,4.76076538,17302.0,17301.0,0.02091877]
[1673369014341,4.82197406,17302.0,17301.0,0.02091877]
[1673369014633,4.24400706,17302.0,17301.0,0.02091877]
[1673369014861,4.24400706,17302.0,17301.0,0.02081726]
[1673369015894,4.24400706,17302.0,17301.0,0.02071575]
[1673369016927,4.24400706,17302.0,17301.0,0.02061424]
[1673369017683,4.24400706,17302.0,17301.0,0.02051273]
[1673369017936,4.25784513,17302.0,17301.0,0.02051273]
[1673369018192,4.77460345,17302.0,17301.0,0.02051273]
[1673369018709,4.77460345,17302.0,17301.0,0.02041122]
[1673369020274,5.35257045,17302.0,17301.0,0.02041122]
[1673369020525,5.22689934,17302.0,17301.0,0.01828289]
[1673369020774,5.57722481,17302.0,17301.0,0.01828289]
[1673369021045,5.3532376,17302.0,17301.0,0.01828289]
[1673369021803,5.3532376,17302.0,17301.0,0.01818138]
[1673369022818,5.85417168,17302.0,17301.0,0.01807987]
[1673369023078,5.3532376,17302.0,17301.0,0.01807987]
[1673369023856,5.3532376,17302.0,17301.0,0.01797836]
[1673369024107,5.83328134,17302.0,17301.0,0.01797836]
[1673369024362,4.73788887,17302.0,17301.0,0.01797836]
[1673369024904,4.73788887,17302.0,17301.0,0.01787685]
[1673369025882,4.73788887,17302.0,17301.0,0.01777534]
[1673369026918,4.73788887,17302.0,17301.0,0.01767383]
[1673369027176,5.25531434,17302.0,17301.0,0.01767383]
[1673369027951,5.25531434,17302.0,17301.0,0.01757232]
[1673369028464,4.73788887,17302.0,17301.0,0.01757232]
[1673369028742,3.09485608,17302.0,17301.0,0.01757232]
[1673369028987,3.52605462,17302.0,17301.0,0.01747081]